[Event "EIRCC 2019"]
[Site "Tallinn"]
[Date "2019.12.05"]
[Round "7.15"]
[White "Seeman, Tarvo"]
[Black "Sanal, Vahap"]
[Result "1-0"]
[ECO "A04"]
[WhiteElo "2325"]
[BlackElo "2597"]
[Annotator "ChessBase"]
[PlyCount "101"]
[EventDate "2019.12.05"]
[EventType "swiss"]
[EventCountry "EST"]
[SourceTitle "playchess.com"]
[Source "ChessBase"]
[SourceQuality "1"]
[TimeControl "900+10"]

1. Nf3 {[%emt 0:00:00]} g6 {[%emt 0:00:00]} 2. g3 {[%emt 0:00:01]} Bg7 {[%emt 0:00:00]} 3. d4 {[%emt 0:00:02]} c5 {[%emt 0:00:11]} 4. c3 {[%emt 0:00:01]} Qc7 {[%emt 0:01:15]} 5. Bg2 {[%emt 0:00:04]} Nf6 {[%emt 0:00:02]} 6. O-O {[%emt 0:00:06]} O-O {[%emt 0:00:04]} 7. a4 {[%emt 0:01:08]} d6 {[%emt 0:00:37]} 8. Na3 {[%emt 0:00:11]} Nbd7 {[%emt 0:00:15]} 9. Re1 {[%emt 0:00:24]} Ne4 {[%emt 0:01:27]} 10. Ng5 {[%emt 0:00:32]} Nxg5 {[%emt 0:00:10]} 11. Bxg5 {[%emt 0:00:04]} Re8 {[%emt 0:00:43]} 12. Qd2 {[%emt 0:01:31]} a6 {[%emt 0:00:43]} 13. Bh6 {[%emt 0:00:50]} Bh8 {[%emt 0:00:10]} 14. b4 {[%emt 0:05:45]} cxb4 {[%emt 0:06:19]} 15. cxb4 {[%emt 0:00:03]} Rb8 {[%emt 0:00:01]} 16. Rac1 {[%emt 0:00:51]} Qd8 {[%emt 0:00:03]} 17. Nc4 {[%emt 0:00:47]} b6 {[%emt 0:00:22]} 18. Bc6 {[%emt 0:01:26]} Bb7 {[%emt 0:02:35]} 19. d5 {[%emt 0:00:24]} Bxc6 {[%emt 0:00:56]} 20. dxc6 {[%emt 0:00:02]} Nf6 {[%emt 0:00:02]} 21. b5 {[%emt 0:00:45]} Qc7 {[%emt 0:00:13]} 22. e4 {[%emt 0:01:52]} Red8 {[%emt 0:00:26]} 23. Bf4 {[%emt 0:00:15]} axb5 {[%emt 0:01:08]} 24. axb5 Ne8 {[%emt 0:00:02]} 25. Be3 {[%emt 0:00:13]} Ng7 {[%emt 0:00:27]} 26. Bd4 {[%emt 0:00:49]} Ne6 {[%emt 0:00:23]} 27. Bxh8 {[%emt 0:00:02]} Kxh8 {[%emt 0:00:01]} 28. Ne3 {[%emt 0:00:10]} Rdc8 {[%emt 0:00:15]} 29. Nd5 {[%emt 0:00:07]} Qd8 {[%emt 0:00:01]} 30. Ra1 {[%emt 0:00:09]} Nc7 {[%emt 0:00:23]} 31. Nxc7 {[%emt 0:00:14]} Rxc7 {[%emt 0:00:02]} 32. Ra6 {[%emt 0:00:08]} Kg8 {[%emt 0:00:03]} 33. h4 {[%emt 0:00:13]} h5 {[%emt 0:00:09]} 34. Rd1 {[%emt 0:00:12]} Qc8 {[%emt 0:00:01]} 35. Rda1 {[%emt 0:00:09]} f5 {[%emt 0:00:45]} 36. e5 {[%emt 0:00:10]} Qe6 {[%emt 0:00:11]} 37. exd6 {[%emt 0:00:02]} exd6 {[%emt 0:00:01]} 38. Re1 {[%emt 0:00:05]} Qc4 {[%emt 0:00:09]} 39. Qxd6 {[%emt 0:00:12]} Qc3 {[%emt 0:00:11]} 40. Raa1 {[%emt 0:00:19]} Qg7 {[%emt 0:00:01]} 41. Ra7 {[%emt 0:00:42]} Rbc8 {[%emt 0:00:20]} 42. Rxc7 {[%emt 0:00:02]} Rxc7 {[%emt 0:00:01]} 43. Qe5 {[%emt 0:00:26]} Qxe5 {[%emt 0:00:31]} 44. Rxe5 {[%emt 0:00:02]} Kf7 {[%emt 0:00:00]} 45. Rd5 {[%emt 0:00:15]} Ra7 {[%emt 0:00:04]} 46. Rd8 {[%emt 0:00:06]} Ke7 {[%emt 0:00:06]} 47. Rb8 {[%emt 0:00:03]} Kd6 {[%emt 0:00:02]} 48. Rxb6 {[%emt 0:00:04]} Kc7 {[%emt 0:00:09]} 49. Ra6 {[%emt 0:00:19]} Rxa6 {[%emt 0:00:01]} 50. bxa6 {[%emt 0:00:01]} Kxc6 {[%emt 0:00:01]} 51. Kg2 {[%emt 0:00:04]} 1-0

[Event "EIRCC 2019"]
[Site "Tallinn"]
[Date "2019.12.05"]
[Round "7.16"]
[White "Shubin, Kirill"]
[Black "Aleksandrov, Aleksej"]
[Result "1-0"]
[ECO "C95"]
[WhiteElo "2321"]
[BlackElo "2576"]
[Annotator "ChessBase"]
[PlyCount "97"]
[EventDate "2019.12.05"]
[EventType "swiss"]
[EventCountry "EST"]
[SourceTitle "playchess.com"]
[Source "ChessBase"]
[SourceQuality "1"]
[TimeControl "900+10"]

1. e4 {[%emt 0:00:00]} e5 {[%emt 0:00:00]} 2. Nf3 {[%emt 0:00:00]} Nc6 {[%emt 0:00:00]} 3. Bb5 {[%emt 0:00:00]} a6 {[%emt 0:00:00]} 4. Ba4 {[%emt 0:00:00]} Nf6 {[%emt 0:00:00]} 5. O-O {[%emt 0:00:00]} Be7 {[%emt 0:00:00]} 6. Re1 {[%emt 0:00:00]} b5 {[%emt 0:00:00]} 7. Bb3 {[%emt 0:00:01]} d6 {[%emt 0:00:00]} 8. c3 {[%emt 0:00:00]} O-O {[%emt 0:00:00]} 9. h3 {[%emt 0:00:01]} Nb8 {[%emt 0:00:00]} 10. d4 {[%emt 0:00:07]} Nbd7 {[%emt 0:00:01]} 11. Nbd2 {[%emt 0:00:02]} c5 {[%emt 0:00:02]} 12. d5 {[%emt 0:00:05]} c4 {[%emt 0:00:09]} 13. Bc2 {[%emt 0:00:02]} Nc5 {[%emt 0:00:11]} 14. b4 {[%emt 0:00:55]} cxb3 {[%emt 0:00:01]} 15. axb3 {[%emt 0:00:02]} Bd7 {[%emt 0:00:01]} 16. Ba3 {[%emt 0:01:11]} Qc7 {[%emt 0:01:19]} 17. c4 {[%emt 0:00:25]} a5 {[%emt 0:00:05]} 18. cxb5 {[%emt 0:01:47]} Bxb5 {[%emt 0:00:02]} 19. Nf1 {[%emt 0:00:12]} Rfc8 {[%emt 0:00:13]} 20. Ng3 {[%emt 0:00:23]} Bf8 {[%emt 0:00:23]} 21. Qd2 {[%emt 0:00:57]} Nfd7 {[%emt 0:01:14]} 22. Rec1 {[%emt 0:00:35]} Qb6 {[%emt 0:00:02]} 23. Bb2 {[%emt 0:00:57]} g6 {[%emt 0:00:32]} 24. Ra3 {[%emt 0:00:42]} Nb7 {[%emt 0:02:22]} 25. Rca1 {[%emt 0:00:13]} Bh6 {[%emt 0:00:34]} 26. Qd1 {[%emt 0:00:53]} Rc7 {[%emt 0:00:01]} 27. Ne1 {[%emt 0:01:40]} Rac8 {[%emt 0:00:18]} 28. Ne2 {[%emt 0:01:12]} Ndc5 {[%emt 0:01:55]} 29. Nc3 {[%emt 0:00:32]} Bd7 {[%emt 0:00:02]} 30. Bd3 {[%emt 0:02:58]} a4 {[%emt 0:01:17]} 31. b4 {[%emt 0:01:19]} Qxb4 {[%emt 0:00:04]} 32. Rb1 {[%emt 0:00:11]} Nb3 {[%emt 0:01:39]} 33. Nc2 {[%emt 0:00:23]} Qa5 {[%emt 0:00:19]} 34. Na2 {[%emt 0:00:16]} N7c5 {[%emt 0:00:16]} 35. Bc3 {[%emt 0:00:29]} Qb6 {[%emt 0:00:21]} 36. Na1 {[%emt 0:00:29]} Nxd3 {[%emt 0:02:02]} 37. Qxd3 {[%emt 0:00:01]} Bb5 {[%emt 0:00:03]} 38. Qf3 {[%emt 0:00:51]} Nxa1 {[%emt 0:02:55]} 39. Bxa1 {[%emt 0:00:05]} Qa6 {[%emt 0:00:15]} 40. Nc3 {[%emt 0:00:21]} Be8 {[%emt 0:00:08]} 41. Kh2 {[%emt 0:00:40]} Qa5 {[%emt 0:00:02]} 42. Qf6 {[%emt 0:00:19]} Qc5 {[%emt 0:00:02]} 43. Bb2 {[%emt 0:00:17]} Rb8 {[%emt 0:00:24]} 44. Nxa4 {[%emt 0:00:17]} Bxa4 {[%emt 0:00:55]} 45. Rxa4 {[%emt 0:00:01]} Qc2 {[%emt 0:00:01]} 46. Bxe5 {[%emt 0:00:08]} Bf4+ 47. Bxf4 {[%emt 0:00:01]} Qxb1 {[%emt 0:01:47]} 48. Bh6 {[%emt 0:00:04]} Qb2 {[%emt 0:00:17]} 49. Qxb2 {[%emt 0:00:03]} 1-0

[Event "EIRCC 2019"]
[Site "Tallinn"]
[Date "2019.12.05"]
[Round "7.17"]
[White "Kononenko, Dmitry"]
[Black "Stupak, Kirill"]
[Result "0-1"]
[ECO "A37"]
[WhiteElo "2277"]
[BlackElo "2552"]
[Annotator "ChessBase"]
[PlyCount "68"]
[EventDate "2019.12.05"]
[EventType "swiss"]
[EventCountry "EST"]
[SourceTitle "playchess.com"]
[Source "ChessBase"]
[SourceQuality "1"]
[TimeControl "900+10"]

1. Nf3 {[%emt 0:00:00]} g6 {[%emt 0:00:00]} 2. c4 {[%emt 0:00:00]} Bg7 {[%emt 0:00:00]} 3. g3 {[%emt 0:00:00]} c5 {[%emt 0:00:00]} 4. Bg2 {[%emt 0:00:00]} Nc6 {[%emt 0:00:00]} 5. Nc3 {[%emt 0:00:05]} e6 {[%emt 0:00:00]} 6. O-O {[%emt 0:00:59]} Nge7 {[%emt 0:00:00]} 7. d3 {[%emt 0:01:16]} O-O {[%emt 0:00:05]} 8. Bd2 {[%emt 0:00:20]} d5 {[%emt 0:00:07]} 9. Rb1 {[%emt 0:01:09]} b6 {[%emt 0:00:26]} 10. a3 {[%emt 0:00:36]} Bb7 {[%emt 0:00:33]} 11. cxd5 {[%emt 0:01:18]} exd5 {[%emt 0:00:15]} 12. b4 {[%emt 0:00:29]} cxb4 {[%emt 0:00:44]} 13. axb4 {[%emt 0:00:03]} d4 {[%emt 0:00:01]} 14. Ne4 {[%emt 0:01:31]} Nd5 {[%emt 0:00:03]} 15. b5 {[%emt 0:00:52]} Nce7 {[%emt 0:00:02]} 16. Qb3 {[%emt 0:01:17]} Qd7 {[%emt 0:00:59]} 17. Rfc1 {[%emt 0:01:17]} h6 {[%emt 0:02:50]} 18. Qa3 {[%emt 0:03:15]} Rfd8 {[%emt 0:00:34]} 19. Bb4 {[%emt 0:00:02]} Nxb4 {[%emt 0:05:52]} 20. Rxb4 {[%emt 0:00:02]} f5 {[%emt 0:00:48]} 21. Ned2 {[%emt 0:00:20]} Bd5 {[%emt 0:00:22]} 22. Nb3 {[%emt 0:01:00]} Bf8 {[%emt 0:01:24]} 23. Rxd4 {[%emt 0:02:03]} Qe6 {[%emt 0:00:02]} 24. Nfd2 {[%emt 0:00:40]} Bxg2 {[%emt 0:00:58]} 25. Kxg2 {[%emt 0:00:15]} Nd5 {[%emt 0:01:10]} 26. Qa4 {[%emt 0:00:11]} Bg7 {[%emt 0:00:01]} 27. Rdc4 {[%emt 0:00:05]} Qxe2 {[%emt 0:00:06]} 28. Kg1 {[%emt 0:00:11]} Qxd3 {[%emt 0:00:13]} 29. Re1 {[%emt 0:00:19]} Re8 {[%emt 0:00:35]} 30. Rcc1 {[%emt 0:00:03]} Nc3 {[%emt 0:00:12]} 31. Rxe8+ {[%emt 0:00:11]} Rxe8 {[%emt 0:00:02]} 32. Qb4 {[%emt 0:00:18]} Ne2+ {[%emt 0:00:08]} 33. Kg2 {[%emt 0:00:03]} Nxc1 {[%emt 0:00:29]} 34. Nxc1 {[%emt 0:00:02]} Qc3 {[%emt 0:00:00]} 0-1

[Event "EIRCC 2019"]
[Site "Tallinn"]
[Date "2019.12.05"]
[Round "7.18"]
[White "Ruck, Robert"]
[Black "Dordzhieva, Dinara"]
[Result "1/2-1/2"]
[ECO "A05"]
[WhiteElo "2551"]
[BlackElo "2310"]
[Annotator "ChessBase"]
[PlyCount "80"]
[EventDate "2019.12.05"]
[EventType "swiss"]
[EventCountry "EST"]
[SourceTitle "playchess.com"]
[Source "ChessBase"]
[SourceQuality "1"]
[TimeControl "900+10"]

1. Nf3 {[%emt 0:00:00]} Nf6 {[%emt 0:00:02]} 2. c4 {[%emt 0:00:00]} e6 {[%emt 0:00:04]} 3. Nc3 {[%emt 0:00:00]} d5 {[%emt 0:00:03]} 4. d4 {[%emt 0:00:02]} dxc4 {[%emt 0:00:04]} 5. e4 {[%emt 0:00:02]} Bb4 {[%emt 0:00:08]} 6. Bg5 {[%emt 0:00:08]} h6 {[%emt 0:00:12]} 7. Bxf6 {[%emt 0:00:07]} Qxf6 {[%emt 0:00:02]} 8. Bxc4 {[%emt 0:00:05]} c5 {[%emt 0:00:00]} 9. O-O {[%emt 0:01:12]} cxd4 {[%emt 0:00:02]} 10. Nb5 {[%emt 0:00:06]} Qe7 {[%emt 0:01:14]} 11. Qxd4 {[%emt 0:00:06]} O-O {[%emt 0:00:11]} 12. Nxa7 {[%emt 0:00:04]} Bc5 {[%emt 0:00:42]} 13. Nxc8 {[%emt 0:00:06]} Rxc8 {[%emt 0:00:01]} 14. Qd3 {[%emt 0:00:22]} Nc6 {[%emt 0:00:32]} 15. Qe2 {[%emt 0:00:38]} Rd8 {[%emt 0:00:02]} 16. Rad1 {[%emt 0:02:07]} Rxd1 {[%emt 0:00:08]} 17. Rxd1 {[%emt 0:00:02]} Rd8 {[%emt 0:00:01]} 18. Rxd8+ {[%emt 0:02:09]} Qxd8 {[%emt 0:00:02]} 19. Qd2 {[%emt 0:00:36]} Qxd2 {[%emt 0:03:09]} 20. Nxd2 {[%emt 0:00:02]} Bd4 {[%emt 0:00:01]} 21. b3 {[%emt 0:00:34]} Nb4 {[%emt 0:00:03]} 22. a4 {[%emt 0:02:14]} Kf8 {[%emt 0:00:12]} 23. Nf3 {[%emt 0:01:37]} Bc3 {[%emt 0:00:17]} 24. Kf1 {[%emt 0:00:03]} Nc6 {[%emt 0:00:29]} 25. Ke2 {[%emt 0:00:50]} Nb4 {[%emt 0:01:25]} 26. Ke3 {[%emt 0:00:44]} Ke7 {[%emt 0:03:35]} 27. Nd4 {[%emt 0:01:04]} g5 {[%emt 0:01:41]} 28. g3 {[%emt 0:00:21]} Nc6 {[%emt 0:00:36]} 29. Ne2 {[%emt 0:00:37]} Bb4 {[%emt 0:00:23]} 30. f4 {[%emt 0:00:11]} gxf4+ {[%emt 0:00:17]} 31. gxf4 {[%emt 0:00:05]} Bc5+ {[%emt 0:00:11]} 32. Kd3 {[%emt 0:00:02]} Nb4+ {[%emt 0:01:24]} 33. Kc3 {[%emt 0:00:24]} Na2+ {[%emt 0:00:02]} 34. Kb2 {[%emt 0:00:07]} Nb4 {[%emt 0:00:01]} 35. Bb5 {[%emt 0:00:01]} f5 {[%emt 0:00:11]} 36. exf5 {[%emt 0:01:29]} exf5 {[%emt 0:00:02]} 37. Kc3 {[%emt 0:00:22]} Bd6 {[%emt 0:00:51]} 38. Kc4 {[%emt 0:02:05]} Nc2 {[%emt 0:00:10]} 39. Kd3 {[%emt 0:00:27]} Ne1+ {[%emt 0:00:17]} 40. Ke3 {[%emt 0:00:02]} Bc5+ {[%emt 0:01:09] Ke4} 1/2-1/2

[Event "EIRCC 2019"]
[Site "Tallinn"]
[Date "2019.12.05"]
[Round "7.19"]
[White "Stocek, Jiri"]
[Black "Kukk, Sander"]
[Result "0-1"]
[ECO "E92"]
[WhiteElo "2532"]
[BlackElo "2313"]
[Annotator "ChessBase"]
[PlyCount "142"]
[EventDate "2019.12.05"]
[EventType "swiss"]
[EventCountry "EST"]
[SourceTitle "playchess.com"]
[Source "ChessBase"]
[SourceQuality "1"]
[TimeControl "900+10"]

1. d4 {[%emt 0:00:00]} g6 {[%emt 0:00:00]} 2. c4 {[%emt 0:00:08]} Bg7 {[%emt 0:00:00]} 3. Nf3 {[%emt 0:00:02]} Nf6 {[%emt 0:00:00]} 4. Nc3 {[%emt 0:00:02]} O-O {[%emt 0:00:00]} 5. e4 {[%emt 0:00:15]} d6 {[%emt 0:00:00]} 6. Be2 {[%emt 0:00:03]} e5 {[%emt 0:00:03]} 7. Be3 {[%emt 0:00:06]} exd4 {[%emt 0:00:03]} 8. Nxd4 {[%emt 0:00:03]} Nc6 {[%emt 0:00:03]} 9. O-O {[%emt 0:00:39]} Re8 {[%emt 0:00:02]} 10. Nxc6 {[%emt 0:00:40]} bxc6 {[%emt 0:00:02]} 11. Bf3 {[%emt 0:00:36]} Rb8 {[%emt 0:00:16]} 12. Qd2 {[%emt 0:01:20]} c5 {[%emt 0:00:07]} 13. Bg5 {[%emt 0:00:42]} Bb7 {[%emt 0:00:09]} 14. Rfe1 {[%emt 0:00:18]} Qc8 {[%emt 0:01:06]} 15. h3 {[%emt 0:00:19]} Nd7 {[%emt 0:00:15]} 16. Bg4 {[%emt 0:00:49]} h5 {[%emt 0:00:07]} 17. Bxd7 {[%emt 0:00:32]} Qxd7 {[%emt 0:00:02]} 18. Rac1 {[%emt 0:00:54]} Bc6 {[%emt 0:00:38]} 19. b3 {[%emt 0:00:17]} a5 {[%emt 0:00:05]} 20. Bh6 {[%emt 0:02:14]} Bh8 {[%emt 0:00:01]} 21. Qd3 {[%emt 0:00:31]} a4 {[%emt 0:00:49]} 22. bxa4 {[%emt 0:00:05]} Bxa4 {[%emt 0:00:40]} 23. Bd2 {[%emt 0:00:21]} Bc6 {[%emt 0:00:11]} 24. f3 {[%emt 0:00:28]} Qe7 {[%emt 0:01:08]} 25. Ne2 {[%emt 0:00:22]} Rb2 {[%emt 0:00:48]} 26. Rc2 {[%emt 0:00:15]} Rb6 {[%emt 0:00:53]} 27. Bc3 {[%emt 0:00:14]} Bxc3 {[%emt 0:00:02]} 28. Nxc3 {[%emt 0:00:08]} Qe5 {[%emt 0:00:51]} 29. Rf2 {[%emt 0:01:48]} Ra8 {[%emt 0:00:28]} 30. Qc2 {[%emt 0:00:54]} Rb4 {[%emt 0:01:55]} 31. Nb1 {[%emt 0:00:26]} Qd4 {[%emt 0:01:05]} 32. Rd1 {[%emt 0:01:55]} Qxc4 {[%emt 0:00:17]} 33. Qxc4 {[%emt 0:00:16]} Rxc4 {[%emt 0:00:01]} 34. Rb2 {[%emt 0:00:02]} Bd7 {[%emt 0:01:58]} 35. e5 {[%emt 0:00:22]} Ra6 {[%emt 0:00:02]} 36. exd6 {[%emt 0:00:06]} cxd6 {[%emt 0:00:00]} 37. Nd2 {[%emt 0:00:56]} Rd4 {[%emt 0:00:11]} 38. Ra1 {[%emt 0:00:12]} Be6 {[%emt 0:00:08]} 39. Ne4 {[%emt 0:00:15]} Kg7 {[%emt 0:02:01]} 40. Kf2 {[%emt 0:00:06]} f5 {[%emt 0:00:23]} 41. Nc3 {[%emt 0:00:05]} Rc4 {[%emt 0:01:16]} 42. Nb5 {[%emt 0:01:16]} Rb6 {[%emt 0:00:33]} 43. Rab1 {[%emt 0:00:02]} Bd7 {[%emt 0:00:18]} 44. Na3 {[%emt 0:00:18]} Rxb2+ {[%emt 0:00:01]} 45. Rxb2 {[%emt 0:00:01]} Ra4 {[%emt 0:00:02]} 46. Rb7 {[%emt 0:00:35]} Rxa3 {[%emt 0:00:01]} 47. Rxd7+ {[%emt 0:00:01]} Kh6 {[%emt 0:00:00]} 48. Rxd6 {[%emt 0:00:03]} Rxa2+ {[%emt 0:00:01]} 49. Kg3 {[%emt 0:00:02]} h4+ {[%emt 0:00:02]} 50. Kxh4 {[%emt 0:00:21]} Rxg2 {[%emt 0:00:02]} 51. Rc6 {[%emt 0:00:05]} Rc2 {[%emt 0:00:01]} 52. Kg3 {[%emt 0:00:05]} c4 {[%emt 0:00:01]} 53. Kf4 {[%emt 0:00:05]} c3 {[%emt 0:00:08]} 54. Rc7 {[%emt 0:00:24]} Rc1 {[%emt 0:00:02]} 55. Rc8 {[%emt 0:00:06]} Kg7 {[%emt 0:00:06]} 56. Ke3 {[%emt 0:00:08]} Kf6 {[%emt 0:00:01]} 57. f4 {[%emt 0:00:05]} Rh1 {[%emt 0:00:02]} 58. Rc6+ {[%emt 0:00:02]} Kg7 {[%emt 0:00:02]} 59. Kd4 {[%emt 0:00:03]} Rxh3 {[%emt 0:00:01]} 60. Rc8 {[%emt 0:00:21]} Rf3 {[%emt 0:00:06]} 61. Ke5 {[%emt 0:00:06]} Re3+ {[%emt 0:00:01]} 62. Kd5 {[%emt 0:00:03]} Re4 {[%emt 0:00:03]} 63. Rxc3 {[%emt 0:00:02]} Rxf4 {[%emt 0:00:01]} 64. Rc7+ {[%emt 0:00:03]} Kf6 {[%emt 0:00:01]} 65. Rc6+ {[%emt 0:00:03]} Kg5 {[%emt 0:00:01]} 66. Rc1 {[%emt 0:00:01]} Re4 {[%emt 0:00:02]} 67. Rg1+ {[%emt 0:00:02]} Kf6 {[%emt 0:00:00]} 68. Ra1 {[%emt 0:00:09]} Re5+ {[%emt 0:00:01]} 69. Kd4 {[%emt 0:00:01]} g5 {[%emt 0:00:01]} 70. Ra6+ {[%emt 0:00:01]} Re6 {[%emt 0:00:01]} 71. Ra8 {[%emt 0:00:01]} g4 {[%emt 0:00:01]} 0-1

[Event "EIRCC 2019"]
[Site "Tallinn"]
[Date "2019.12.05"]
[Round "7.21"]
[White "Khakimov, Timur"]
[Black "Ionov, Sergey"]
[Result "0-1"]
[ECO "D00"]
[WhiteElo "2253"]
[BlackElo "2480"]
[Annotator "ChessBase"]
[PlyCount "76"]
[EventDate "2019.12.05"]
[EventType "swiss"]
[EventCountry "EST"]
[SourceTitle "playchess.com"]
[Source "ChessBase"]
[SourceQuality "1"]
[TimeControl "900+10"]

1. d4 {[%emt 0:00:00]} d5 {[%emt 0:00:00]} 2. Nc3 {[%emt 0:00:00]} Nf6 {[%emt 0:00:08]} 3. Bf4 {[%emt 0:00:00]} a6 {[%emt 0:00:13]} 4. e3 {[%emt 0:00:00]} e6 {[%emt 0:00:05]} 5. Nf3 {[%emt 0:00:03]} c5 {[%emt 0:00:18]} 6. dxc5 {[%emt 0:00:02]} Bxc5 {[%emt 0:00:04]} 7. Bd3 {[%emt 0:00:02]} Nc6 {[%emt 0:01:07]} 8. O-O {[%emt 0:00:03]} O-O {[%emt 0:00:15]} 9. e4 {[%emt 0:00:01]} d4 {[%emt 0:00:23]} 10. Ne2 {[%emt 0:00:15]} Nh5 {[%emt 0:01:27]} 11. e5 {[%emt 0:01:25]} Qc7 {[%emt 0:00:59]} 12. Re1 {[%emt 0:00:30]} Bb4 {[%emt 0:03:10]} 13. Bd2 {[%emt 0:00:24]} Bxd2 {[%emt 0:00:12]} 14. Qxd2 {[%emt 0:00:02]} Nxe5 {[%emt 0:00:15]} 15. Nxe5 {[%emt 0:00:31]} Qxe5 {[%emt 0:00:02]} 16. Nxd4 {[%emt 0:00:07]} Qc7 {[%emt 0:00:48]} 17. Qg5 {[%emt 0:00:25]} Nf4 {[%emt 0:01:57]} 18. Re3 {[%emt 0:02:03]} f6 {[%emt 0:01:02]} 19. Qh4 {[%emt 0:00:22]} Nxd3 {[%emt 0:00:15]} 20. Rxd3 {[%emt 0:00:02]} e5 {[%emt 0:00:06]} 21. Rc3 {[%emt 0:00:38]} Qb6 {[%emt 0:01:08]} 22. Nb3 {[%emt 0:00:06]} Be6 {[%emt 0:00:08]} 23. Rd3 {[%emt 0:01:39]} Rac8 {[%emt 0:00:47]} 24. Rd2 {[%emt 0:01:11]} Rfd8 {[%emt 0:00:33]} 25. Rad1 {[%emt 0:00:04]} Rxd2 {[%emt 0:00:05]} 26. Rxd2 {[%emt 0:00:03]} Rd8 {[%emt 0:01:02]} 27. Qh5 {[%emt 0:00:22]} g6 {[%emt 0:01:35]} 28. Qd1 {[%emt 0:00:02]} Rxd2 {[%emt 0:00:02]} 29. Qxd2 {[%emt 0:00:02]} Qc7 {[%emt 0:00:32]} 30. h4 {[%emt 0:00:18]} Kg7 {[%emt 0:00:07]} 31. Qb4 {[%emt 0:01:05]} b6 {[%emt 0:00:11]} 32. c3 {[%emt 0:00:25]} a5 {[%emt 0:00:13]} 33. Qe4 {[%emt 0:00:57]} Qd7 {[%emt 0:00:07]} 34. Kh2 {[%emt 0:01:47]} a4 {[%emt 0:00:44]} 35. Nc1 {[%emt 0:00:02]} Qd2 {[%emt 0:00:22]} 36. Nd3 {[%emt 0:00:12]} Bf5 {[%emt 0:00:05]} 37. Qb7+ {[%emt 0:00:01]} Kh6 {[%emt 0:00:02]} 38. Qf7 {[%emt 0:01:48]} Bxd3 {[%emt 0:00:12]} 0-1

[Event "EIRCC 2019"]
[Site "Tallinn"]
[Date "2019.12.05"]
[Round "7.22"]
[White "Cerveny, Martin"]
[Black "Chukavin, Kirill"]
[Result "1/2-1/2"]
[ECO "A46"]
[WhiteElo "2432"]
[BlackElo "2290"]
[Annotator "NA"]
[PlyCount "157"]
[EventDate "2019.12.05"]
[EventType "swiss"]
[EventCountry "EST"]
[SourceTitle "playchess.com"]
[Source "ChessBase"]
[SourceQuality "1"]
[TimeControl "900+10"]

1. d4 {[%emt 0:00:00]} Nf6 {[%emt 0:00:00]} 2. Nf3 {[%emt 0:00:00]} d5 {[%emt 0:00:00]} 3. c4 {[%emt 0:00:00]} e6 {[%emt 0:00:00]} 4. g3 {[%emt 0:00:00]} dxc4 {[%emt 0:00:00]} 5. Qa4+ {[%emt 0:00:13]} Nbd7 {[%emt 0:00:12]} 6. Bg2 {[%emt 0:00:17]} a6 {[%emt 0:00:03]} 7. Qxc4 {[%emt 0:00:02]} b5 {[%emt 0:00:02]} 8. Qc2 {[%emt 0:00:10]} Bb7 {[%emt 0:00:02]} 9. Be3 {[%emt 0:00:52]} Rc8 {[%emt 0:00:34]} 10. O-O {[%emt 0:00:17]} c5 {[%emt 0:00:26]} 11. dxc5 {[%emt 0:00:56]} Bxc5 {[%emt 0:00:09]} 12. Bxc5 {[%emt 0:00:09]} Nxc5 {[%emt 0:00:07]} 13. Rd1 {[%emt 0:00:21]} Qb6 {[%emt 0:00:13]} 14. Qd2 {[%emt 0:00:47]} O-O {[%emt 0:00:45]} 15. Qe1 {[%emt 0:00:13]} Rfd8 {[%emt 0:00:53]} 16. Nbd2 {[%emt 0:00:08]} h6 {[%emt 0:02:32]} 17. b4 {[%emt 0:00:35]} Nce4 {[%emt 0:00:48]} 18. Nxe4 {[%emt 0:00:02]} Nxe4 {[%emt 0:00:50]} 19. Rxd8+ {[%emt 0:01:03]} Rxd8 {[%emt 0:00:27]} 20. Rc1 {[%emt 0:00:26]} Qd6 {[%emt 0:05:43]} 21. a3 {[%emt 0:01:40]} Nd2 {[%emt 0:02:58]} 22. Qxd2 {[%emt 0:00:20]} Qxd2 {[%emt 0:00:04]} 23. Nxd2 {[%emt 0:00:02]} Bxg2 {[%emt 0:00:01]} 24. Nb3 {[%emt 0:00:07]} Bd5 {[%emt 0:00:21]} 25. Nc5 {[%emt 0:00:07]} Bc4 {[%emt 0:00:13]} 26. e3 {[%emt 0:01:15]} Rd6 {[%emt 0:01:23]} 27. e4 {[%emt 0:00:54]} g5 {[%emt 0:00:23]} 28. h3 {[%emt 0:00:38]} Kg7 {[%emt 0:00:04]} 29. Kg2 {[%emt 0:00:05]} Kf6 {[%emt 0:00:04]} 30. a4 {[%emt 0:00:15]} Ke5 {[%emt 0:00:14]} 31. a5 {[%emt 0:00:02]} Rd2 {[%emt 0:00:24]} 32. Nxa6 {[%emt 0:02:28]} Kxe4 {[%emt 0:00:01]} 33. Nc7 {[%emt 0:00:59]} Ke5 {[%emt 0:00:09]} 34. a6 {[%emt 0:01:13]} Ra2 {[%emt 0:00:04]} 35. Rd1 {[%emt 0:00:05]} Bd5+ {[%emt 0:00:05]} 36. Kg1 {[%emt 0:00:02]} Bf3 {[%emt 0:00:04]} 37. Re1+ {[%emt 0:00:07]} Kf6 {[%emt 0:00:20]} 38. g4 {[%emt 0:00:02]} Ke7 {[%emt 0:00:17]} 39. Nxb5 {[%emt 0:00:50]} Rxa6 {[%emt 0:00:04]} 40. Nd4 {[%emt 0:00:05]} Bd5 {[%emt 0:00:04]} 41. Nf5+ {[%emt 0:01:04]} Kf6 {[%emt 0:00:02]} 42. Ne3 {[%emt 0:00:02]} Ra4 {[%emt 0:00:34]} 43. Nxd5+ {[%emt 0:01:24]} exd5 {[%emt 0:00:01]} 44. Rb1 {[%emt 0:00:01]} Ke5 {[%emt 0:00:14]} 45. b5 {[%emt 0:00:01]} Ra7 {[%emt 0:00:13]} 46. Kf1 {[%emt 0:00:42]} Rb7 {[%emt 0:00:02]} 47. Ke2 {[%emt 0:00:01]} Kd4 {[%emt 0:00:10]} 48. Kd2 {[%emt 0:00:42]} Kc5 {[%emt 0:00:07]} 49. Rc1+ {[%emt 0:00:13]} Kxb5 {[%emt 0:00:11]} 50. Kd3 {[%emt 0:00:01]} Re7 {[%emt 0:00:25]} 51. Kd4 {[%emt 0:00:30]} Re2 {[%emt 0:00:08]} 52. Kxd5 {[%emt 0:00:32]} Rxf2 {[%emt 0:00:02]} 53. Rb1+ {[%emt 0:00:01]} Ka5 {[%emt 0:00:06]} 54. Ke5 {[%emt 0:00:04]} Rf3 {[%emt 0:00:15]} 55. Rh1 {[%emt 0:00:11]} Kb5 {[%emt 0:00:12]} 56. h4 {[%emt 0:00:12]} Rf4 {[%emt 0:00:11]} 57. hxg5 {[%emt 0:00:17]} hxg5 {[%emt 0:00:02]} 58. Rg1 {[%emt 0:00:10]} Kc4 {[%emt 0:00:11]} 59. Rg3 {[%emt 0:00:09]} f6+ {[%emt 0:00:09]} 60. Ke6 {[%emt 0:00:01]} Kd4 {[%emt 0:00:03]} 61. Kf7 {[%emt 0:00:05]} Ke5 {[%emt 0:00:25]} 62. Kg6 {[%emt 0:00:09]} Re4 {[%emt 0:00:12]} 63. Rg1 {[%emt 0:00:27]} Rf4 {[%emt 0:00:18]} 64. Kh5 {[%emt 0:00:10]} Kd4 {[%emt 0:00:08]} 65. Re1 {[%emt 0:00:03]} Re4 {[%emt 0:00:07]} 66. Rf1 {[%emt 0:00:01]} Rf4 {[%emt 0:00:05]} 67. Re1 {[%emt 0:00:01]} Re4 {[%emt 0:00:01]} 68. Rf1 {[%emt 0:00:00]} Ke5 {[%emt 0:00:18]} 69. Rf5+ {[%emt 0:00:04]} Ke6 {[%emt 0:00:03]} 70. Rf1 {[%emt 0:00:02]} Kf7 {[%emt 0:00:25]} 71. Ra1 {[%emt 0:00:02]} Re8 {[%emt 0:00:11]} 72. Ra7+ {[%emt 0:00:04]} Re7 {[%emt 0:00:02]} 73. Ra6 {[%emt 0:00:18]} Kg7 {[%emt 0:00:04]} 74. Rb6 {[%emt 0:00:06]} Rf7 {[%emt 0:00:05]} 75. Ra6 {[%emt 0:00:02]} Kh7 {[%emt 0:00:11]} 76. Rb6 {[%emt 0:00:16]} Kg7 {[%emt 0:00:09]} 77. Ra6 {[%emt 0:00:02]} Rf8 {[%emt 0:00:08]} 78. Ra7+ {[%emt 0:00:02]} Rf7 {[%emt 0:00:03]} 79. Ra6 {[%emt 0:00:01]} 1/2-1/2